fUSD/lending_fUSD_20240714
["ID","MTS","AMOUNT","RATE_DAILY","PERIOD"]
[332112467,1720968649658,-500.0,0.00013753,2]
[332112468,1720968649667,-500.0,0.00013753,2]
[332112469,1720968649677,-500.0,0.00013753,2]
[332112470,1720968649688,-500.0,0.00013753,2]
[332112471,1720968649698,-500.0,0.00013753,2]
[332112472,1720968649708,-500.0,0.00013753,2]
[332112473,1720968649718,-500.0,0.00013753,2]
[332112474,1720968649728,-500.0,0.00013753,2]
[332112475,1720968649738,-500.0,0.00013753,2]
[332112476,1720968649747,-500.0,0.00013753,2]
[332112477,1720968649756,-566.9689396,0.00013753,2]
[332112478,1720968649766,-1511.23,0.00013753,2]
[332112479,1720968649775,-500.0,0.00013753,2]
[332112480,1720968649784,-500.0,0.00013753,2]
[332112481,1720968649793,-501.47,0.00013753,2]
[332112482,1720968649803,-500.0,0.00013753,2]
[332112483,1720968649812,-500.0,0.00013753,2]
[332112484,1720968649822,-260.84634172,0.00013753,2]
[332112485,1720968649832,-500.0,0.00013753,2]
[332112486,1720968649842,-500.0,0.00013753,2]
[332112487,1720968649851,-521.54,0.00013753,2]
[332112488,1720968649862,-500.0,0.00013753,2]
[332112489,1720968649874,-500.0,0.00013753,2]
[332112490,1720968649884,-690.09,0.00013753,2]
[332112491,1720968649893,-500.0,0.00013753,2]
[332112492,1720968649903,-500.0,0.00013753,2]
[332112493,1720968649912,-500.0,0.00013753,2]
[332112494,1720968649922,-500.0,0.00013753,2]
[332112495,1720968649931,-500.0,0.00013753,2]
[332112496,1720968649941,-500.0,0.00013753,2]
[332112497,1720968649951,-500.0,0.00013753,2]
[332112498,1720968649961,-500.0,0.00013753,2]
[332112499,1720968649970,-500.0,0.00013753,2]
[332112500,1720968649980,-500.0,0.00013753,2]
[332112501,1720968649990,-500.0,0.00013753,2]
[332112502,1720968650000,-500.0,0.00013753,2]
[332112503,1720968650009,-500.0,0.00013753,2]
[332112504,1720968650018,-500.0,0.00013753,2]
[332112505,1720968650028,-500.0,0.00013753,2]
[332112506,1720968650038,-918.09,0.00013753,2]
[332112507,1720968650048,-500.0,0.00013753,2]
[332112508,1720968650057,-500.0,0.00013753,2]
[332112509,1720968650066,-500.0,0.00013753,2]
[332112510,1720968650076,-500.0,0.00013753,2]
[332112511,1720968650085,-510.72033167,0.00013753,2]
[332112512,1720968650095,-500.0,0.00013753,2]
[332112513,1720968650105,-920.6,0.00013753,2]
[332112514,1720968650115,-500.0,0.00013753,2]
[332112515,1720968650124,-822.71,0.00013753,2]
[332112516,1720968650133,-500.0,0.00013753,2]
[332112517,1720968650142,-500.0,0.00013753,2]
[332112518,1720968650152,-500.0,0.00013753,2]
[332112519,1720968650162,-500.0,0.00013753,2]
[332112520,1720968650172,-582.7,0.00013753,2]
[332112521,1720968650181,-500.0,0.00013753,2]
[332112522,1720968650192,-500.0,0.00013753,2]
[332112523,1720968650202,-500.0,0.00013753,2]
[332112524,1720968650211,-500.0,0.00013753,2]
[332112525,1720968650221,-877.87,0.00013753,2]
[332112526,1720968650230,-500.0,0.00013753,2]
[332112527,1720968650239,-1772.37,0.00013753,2]
[332112528,1720968650248,-500.0,0.00013753,2]
[332112529,1720968650258,-500.0,0.00013753,2]
[332112530,1720968650270,-500.0,0.00013753,2]
[332112531,1720968650279,-500.0,0.00013753,2]
[332112532,1720968650289,-651.99,0.00013753,2]
[332112533,1720968650298,-500.0,0.00013753,2]
[332112534,1720968650308,-500.0,0.00013753,2]
[332112535,1720968650317,-500.0,0.00013753,2]
[332112536,1720968650327,-500.0,0.00013753,2]
[332112537,1720968650337,-500.0,0.00013753,2]
[332112538,1720968650347,-500.0,0.00013753,2]
[332112539,1720968650356,-500.0,0.00013753,2]
[332112540,1720968650366,-500.0,0.00013753,2]
[332112541,1720968650375,-1092.72,0.00013753,2]
[332112542,1720968650385,-500.0,0.00013753,2]
[332112543,1720968650395,-500.0,0.00013753,2]
[332112544,1720968650404,-500.0,0.00013753,2]
[332112545,1720968650414,-500.0,0.00013753,2]
[332112546,1720968650423,-500.0,0.00013753,2]
[332112547,1720968650433,-500.0,0.00013753,2]
[332112548,1720968650443,-500.0,0.00013753,2]
[332112549,1720968650453,-500.0,0.00013753,2]
[332112550,1720968650462,-500.0,0.00013753,2]
[332112551,1720968650472,-500.0,0.00013753,2]
[332112552,1720968650482,-843.33,0.00013753,2]
[332112553,1720968650492,-500.0,0.00013753,2]
[332112554,1720968650501,-500.0,0.00013753,2]
[332112555,1720968650510,-500.0,0.00013753,2]
[332112556,1720968650520,-500.0,0.00013753,2]
[332112557,1720968650529,-500.0,0.00013753,2]
[332112558,1720968650538,-500.0,0.00013753,2]
[332112559,1720968650548,-500.0,0.00013753,2]
[332112560,1720968650557,-500.0,0.00013753,2]
[332112561,1720968650566,-500.0,0.00013753,2]
[332112562,1720968650576,-500.0,0.00013753,2]
[332112563,1720968650585,-500.0,0.00013753,2]
[332112564,1720968650594,-500.0,0.00013753,2]
[332112565,1720968650604,-500.0,0.00013753,2]
[332112566,1720968650613,-500.0,0.00013753,2]
[332112567,1720968650623,-546.35,0.00013753,2]
[332112568,1720968650632,-500.0,0.00013753,2]
[332112569,1720968650642,-500.0,0.00013753,2]
[332112570,1720968650651,-500.0,0.00013753,2]
[332112571,1720968650660,-500.0,0.00013753,2]
[332112572,1720968650669,-500.0,0.00013753,2]
[332112573,1720968650679,-760.17,0.00013753,2]
[332112574,1720968650689,-1592.96,0.00013753,2]
[332112575,1720968650698,-500.0,0.00013753,2]
[332112576,1720968650707,-500.0,0.00013753,2]
[332112577,1720968650717,-1123.65,0.00013753,2]
[332112578,1720968650728,-523.47,0.00013753,2]
[332112579,1720968650737,-843.9,0.00013753,2]
[332112580,1720968650747,-500.0,0.00013753,2]
[332112581,1720968650757,-500.0,0.00013753,2]
[332112582,1720968650767,-500.0,0.00013753,2]
[332112583,1720968650777,-500.0,0.00013753,2]
[332112584,1720968650788,-500.0,0.00013753,2]
[332112585,1720968650797,-632.68,0.00013753,2]
[332112586,1720968650807,-500.0,0.00013753,2]
[332112587,1720968650816,-827.42,0.00013753,2]
[332112588,1720968650825,-500.0,0.00013753,2]
[332112589,1720968650835,-500.0,0.00013753,2]
[332112590,1720968650845,-500.0,0.00013753,2]
[332112591,1720968650854,-500.0,0.00013753,2]
[332112592,1720968650863,-1074.31,0.00013753,2]
[332112593,1720968650873,-686.19,0.00013753,2]
[332112594,1720968650882,-500.0,0.00013753,2]
[332112595,1720968650891,-525.96,0.00013753,2]
[332112596,1720968650901,-500.0,0.00013753,2]
[332112597,1720968650911,-500.0,0.00013753,2]
[332112598,1720968650922,-500.0,0.00013753,2]
[332112599,1720968650931,-500.0,0.00013753,2]
[332112600,1720968650942,-879.33,0.00013753,2]
[332112601,1720968650952,-500.0,0.00013753,2]
[332112602,1720968650961,-500.0,0.00013753,2]
[332112603,1720968650972,-500.0,0.00013753,2]
[332112604,1720968650981,-500.0,0.00013753,2]
[332112605,1720968650992,-500.0,0.00013753,2]
[332112606,1720968651002,-505.08,0.00013753,2]
[332112607,1720968651012,-500.0,0.00013753,2]
[332112608,1720968651023,-636.52489788,0.00013753,2]
[332112609,1720968651033,-642.43,0.00013753,2]
[332112610,1720968651044,-500.0,0.00013753,2]
[332112611,1720968651054,-500.0,0.00013753,2]
[332112612,1720968651064,-813.94,0.00013753,2]
[332112613,1720968651074,-500.0,0.00013753,2]
[332112614,1720968651083,-500.0,0.00013753,2]
[332112615,1720968651093,-500.0,0.00013753,2]
[332112616,1720968651103,-500.0,0.00013753,2]
[332112617,1720968651114,-500.0,0.00013753,2]
[332112618,1720968651125,-500.0,0.00013753,2]
[332112619,1720968651135,-500.0,0.00013753,2]
[332112620,1720968651144,-500.0,0.00013753,2]
[332112621,1720968651155,-500.0,0.00013753,2]
[332112622,1720968651164,-578.18,0.00013753,2]
[332112623,1720968651174,-500.0,0.00013753,2]
[332112624,1720968651184,-500.0,0.00013753,2]
[332112625,1720968651197,-500.0,0.00013753,2]
[332112626,1720968651208,-500.0,0.00013753,2]
[332112627,1720968651262,-500.0,0.00013753,2]
[332112628,1720968651276,-500.0,0.00013753,2]
[332112629,1720968651285,-500.0,0.00013753,2]
[332112630,1720968651294,-761.1,0.00013753,2]
[332112631,1720968651304,-500.0,0.00013753,2]
[332112632,1720968651314,-500.0,0.00013753,2]
[332112633,1720968651323,-9012.47,0.00013753,2]
[332112634,1720968651332,-500.0,0.00013753,2]
[332112635,1720968651344,-500.0,0.00013753,2]
[332112636,1720968651354,-500.0,0.00013753,2]
[332112637,1720968651363,-500.0,0.00013753,2]
[332112638,1720968651372,-500.0,0.00013753,2]
[332112639,1720968651381,-993.84,0.00013753,2]
[332112640,1720968651390,-1002.28,0.00013753,2]
[332112641,1720968651400,-500.0,0.00013753,2]
[332112642,1720968651409,-600.09,0.00013753,2]
[332112643,1720968651418,-723.31,0.00013753,2]
[332112644,1720968651427,-500.0,0.00013753,2]
[332112645,1720968651437,-500.0,0.00013753,2]
[332112646,1720968651449,-500.0,0.00013753,2]
[332112647,1720968651459,-500.0,0.00013753,2]
[332112648,1720968651468,-500.0,0.00013753,2]
[332112649,1720968651476,-500.0,0.00013753,2]
[332112650,1720968651486,-593.03,0.00013753,2]
[332112651,1720968651495,-500.0,0.00013753,2]
[332112652,1720968651504,-500.0,0.00013753,2]
[332112653,1720968651513,-500.0,0.00013753,2]
[332112654,1720968651522,-500.0,0.00013753,2]
[332112655,1720968651532,-500.0,0.00013753,2]
[332112656,1720968651540,-500.0,0.00013753,2]
[332112657,1720968651549,-500.0,0.00013753,2]
[332112658,1720968651558,-500.0,0.00013753,2]
[332112659,1720968651568,-500.0,0.00013753,2]
[332112660,1720968651577,-500.0,0.00013753,2]
[332112661,1720968651586,-500.0,0.00013753,2]
[332112662,1720968651595,-672.56,0.00013753,2]
[332112663,1720968651604,-645.22,0.00013753,2]
[332112664,1720968651613,-500.0,0.00013753,2]
[332112665,1720968651623,-500.0,0.00013753,2]
[332112666,1720968651633,-500.0,0.00013753,2]
[332112667,1720968651642,-605.97,0.00013753,2]
[332112668,1720968651653,-500.0,0.00013753,2]
[332112669,1720968651663,-500.0,0.00013753,2]
[332112670,1720968651672,-500.0,0.00013753,2]
[332112671,1720968651681,-500.0,0.00013753,2]
[332112672,1720968651690,-500.0,0.00013753,2]
[332112673,1720968651699,-553.76,0.00013753,2]
[332112674,1720968651708,-500.0,0.00013753,2]
[332112675,1720968651717,-500.0,0.00013753,2]
[332112676,1720968651726,-500.0,0.00013753,2]
[332112677,1720968651734,-500.0,0.00013753,2]
[332112678,1720968651744,-500.0,0.00013753,2]
[332112679,1720968651754,-500.0,0.00013753,2]
[332112680,1720968651764,-500.0,0.00013753,2]
[332112681,1720968651774,-500.0,0.00013753,2]
[332112682,1720968651784,-500.0,0.00013753,2]
[332112683,1720968651793,-500.0,0.00013753,2]
[332112684,1720968651803,-500.0,0.00013753,2]
[332112685,1720968651812,-500.0,0.00013753,2]
[332112686,1720968651821,-640.75,0.00013753,2]
[332112687,1720968651830,-500.0,0.00013753,2]
[332112688,1720968651839,-500.0,0.00013753,2]
[332112689,1720968651849,-500.0,0.00013753,2]
[332112690,1720968651859,-500.0,0.00013753,2]
[332112691,1720968651867,-500.0,0.00013753,2]
[332112692,1720968651877,-771.2,0.00013753,2]
[332112693,1720968651886,-500.0,0.00013753,2]
[332112694,1720968651895,-500.0,0.00013753,2]
[332112695,1720968651904,-500.0,0.00013753,2]
[332112696,1720968651913,-500.0,0.00013753,2]
[332112697,1720968651922,-500.0,0.00013753,2]
[332112698,1720968651931,-268.75,0.00013753,2]
[332112699,1720968651940,-500.0,0.00013753,2]
[332112700,1720968651949,-500.0,0.00013753,2]
[332112701,1720968651958,-500.0,0.00013753,2]
[332112702,1720968651967,-500.0,0.00013753,2]
[332112703,1720968651976,-227.94969352,0.00013759,2]
[332112704,1720968651985,-2843.74578093,0.00013787,2]
[332112705,1720968651994,-500.0,0.00013789,2]
[332112706,1720968652003,-345.90193765,0.00013789,2]
[332112707,1720968652013,-500.0,0.00013789,2]
[332112708,1720968652022,-441.11467835,0.00013789,2]
[332112709,1720968652031,-629.0,0.0001379,2]
[332112710,1720968652041,-199.152,0.0001379,2]
[332112711,1720968652050,-199.152,0.0001379,2]
[332112712,1720968652059,-151.0,0.0001379,2]
[332112713,1720968652069,-274.017722,0.0001379,2]
[332112714,1720968652078,-274.017722,0.0001379,2]
[332112715,1720968652087,-151.0,0.0001379,2]
[332112716,1720968652098,-151.0,0.0001379,2]
[332112717,1720968652108,-151.0,0.0001379,2]
[332112718,1720968652119,-151.0,0.0001379,2]
[332112719,1720968652129,-169.175977,0.0001379,2]
[332112720,1720968652140,-498.621356,0.0001379,2]
[332112721,1720968652151,-498.621356,0.0001379,2]
[332112722,1720968652162,-151.0,0.0001379,2]
[332112723,1720968652171,-85165.71997434,0.0001379,2]
[332112724,1720968652182,-85165.71997426,0.0001379,2]
[332112725,1720968652193,-85165.71997426,0.0001379,2]
[332112726,1720968652204,-85165.71997426,0.0001379,2]
[332112727,1720968652215,-85165.71997426,0.0001379,2]
[332112728,1720968652225,-85165.71997426,0.0001379,2]
[332112729,1720968652235,-85165.71997426,0.0001379,2]
[332112730,1720968652245,-85165.71997426,0.0001379,2]
[332112731,1720968652254,-85165.71997426,0.0001379,2]
[332112732,1720968652268,-151.0,0.0001379,2]
[332112733,1720968652277,-151.0,0.0001379,2]
[332112734,1720968652287,-85165.71997426,0.0001379,2]
[332112735,1720968652297,-234.009456,0.0001379,2]
[332112736,1720968652309,-234.009456,0.0001379,2]
[332112737,1720968652319,-234.009456,0.0001379,2]
[332112738,1720968652329,-234.009456,0.0001379,2]
[332112739,1720968652340,-234.009456,0.0001379,2]
[332112740,1720968652350,-234.009456,0.0001379,2]
[332112741,1720968652361,-234.009456,0.0001379,2]
[332112742,1720968652370,-234.009456,0.0001379,2]
[332112743,1720968652379,-169.175977,0.00013797,2]
[332112744,1720968652389,-498.621356,0.00013797,2]
[332112745,1720968652399,-498.621356,0.00013797,2]
[332112746,1720968652408,-151.0,0.00013797,2]
[332112747,1720968652417,-19906.22046651,0.00013797,2]
[332112748,1720968652426,-300.0,0.00013799,2]
[332112749,1720968652435,-533.8033237,0.00013799,2]
[332112750,1720968652450,-14751.60469074,0.00013799,2]
[332112751,1720968652461,-199.152,0.00013799,2]
[332112752,1720968652471,-199.152,0.00013799,2]
[332112753,1720968652483,-254.877368,0.00013799,2]
[332112754,1720968652492,-274.017722,0.00013799,2]
[332112755,1720968652502,-274.017722,0.00013799,2]
[332112756,1720968652511,-169.175977,0.00013799,2]
[332112757,1720968652521,-498.621356,0.00013799,2]
[332112758,1720968652530,-498.621356,0.00013799,2]
[332112759,1720968652540,-151.0,0.00013799,2]
[332112760,1720968652550,-151.0,0.00013799,2]
[332112761,1720968652559,-151.0,0.00013799,2]
[332112762,1720968652568,-151.0,0.00013799,2]
[332112763,1720968652578,-151.0,0.00013799,2]
[332112764,1720968652587,-234.009456,0.00013799,2]
[332112765,1720968652597,-234.009456,0.00013799,2]
[332112766,1720968652607,-223687.15137638,0.000138,2]
[332112767,1720968652616,-1603212.64607232,0.000138,2]
[332112768,1720968652994,-1452.44609635,0.000138,2]
[332112769,1720968653007,-1745.585,0.000138,2]
[332112770,1720968653018,-811.97153213,0.000138,2]
[332112771,1720968653029,-1201.87353666,0.000138,2]
[332112772,1720968653765,-500.0,0.00013698,2]
[332112773,1720968653775,-282.48,0.00013753,2]
[332112774,1720968653785,-1393.76959874,0.000138,2]
[332112775,1720968653808,-1006.89059751,0.000138,2]
[332112776,1720968653820,-3871.77553368,0.000138,2]
[332112777,1720968653833,-2319.13,0.000138,2]
[332112778,1720968653846,-2530.64283678,0.000138,2]
[332112779,1720968653860,-898.5899974,0.000138,2]
[332112780,1720968653872,-379.44033928,0.000138,2]
[332112781,1720968653885,-16251.50482303,0.000138,2]
[332112782,1720968653898,-569.62893995,0.000138,2]
[332112783,1720968653910,-18705.14663532,0.000138,2]
[332112784,1720968653923,-1061.2057,0.000138,2]
[332112785,1720968824175,354.49,0.00010872,2]
[332112786,1720969342676,4251.86916541,0.00010998,2]
[332112824,1720969831714,-356.76,0.0001014,2]
[332112825,1720969831723,-1140.22117558,0.00010997,2]
[332112826,1720969831732,-150.0,0.00011097,2]
[332112827,1720969831742,-300.0,0.00011097,2]
[332112828,1720969831751,-334.77996713,0.00011098,2]
[332112829,1720969831760,-202.50334897,0.00011098,2]
[332112830,1720969831769,-264.91415152,0.00011098,2]
[332112831,1720969831779,-332.85752805,0.00011098,2]
[332112832,1720969831790,-124.3976295,0.00011098,2]
[332112833,1720969831799,-164.01894699,0.00011098,2]
[332112834,1720969831809,-321.44687013,0.00011098,2]
[332112835,1720969831820,-34.97553469,0.00011098,2]
[332112836,1720969831829,-313.93925171,0.00011098,2]
[332112837,1720969831891,-111.28460961,0.00011098,2]
[332112838,1720969831900,-202.20800467,0.00011098,2]
[332112840,1720969831909,-1436.50738572,0.00011098,2]
[332112842,1720969831920,-1060.76727279,0.00011098,2]
[332112843,1720969831930,-926.93886323,0.00011098,2]
[332112844,1720969831939,-667.75858654,0.00011197,2]
[332112845,1720969831948,-4034.53527744,0.00011199,2]
[332112846,1720969831959,-1346.92878964,0.00011199,2]
[332112847,1720969831971,-4738.72109801,0.00011199,2]
[332112862,1720969837791,-11561.57173693,0.00011199,2]
[332112863,1720969838039,-1126.64,0.00011199,2]
[332112864,1720969838053,-500.54133244,0.00011199,2]
[332112865,1720969838067,-473.66,0.00011199,2]
[332112866,1720969838080,-450.25055948,0.00011199,2]
[332113014,1720969839604,-13559.69683109,0.00011199,2]
[332113016,1720969839613,-898.44542075,0.00011199,2]
[332113019,1720969839623,-776.71598788,0.00011894,2]
[332113021,1720969839634,-707.67,0.00011904,2]
[332113023,1720969839644,-250.0,0.00011915,2]
[332113026,1720969839652,-10158.87,0.00011982,2]
[332113028,1720969839662,-161.81,0.00012043,2]
[332113031,1720969839673,-1236.84,0.00012055,2]
[332113034,1720969839682,-188.84,0.0001206,2]
[332113037,1720969839692,-944.17,0.0001207,2]
[332113040,1720969839702,-499.99,0.0001207,2]
[332113042,1720969839710,-297.27,0.00012118,2]
[332113044,1720969839720,-1000.0,0.0001212,2]
[332113047,1720969839729,-22959.73,0.00012135,2]
[332113049,1720969839738,-250.0,0.00012147,2]
[332113051,1720969839748,-745.07,0.00012147,2]
[332113053,1720969839757,-255.0,0.00012151,2]
[332113055,1720969839767,-4319.15,0.00012162,2]
[332113057,1720969839776,-420.0,0.00012193,2]
[332113059,1720969839786,-2076.7591,0.00012202,2]
[332113061,1720969839796,-358.85703166,0.00012273,2]
[332113063,1720969839806,-150.99,0.00012274,2]
[332113065,1720969839815,-1529.00642362,0.00012302,2]
[332113067,1720969839825,-166.48,0.00012342,2]
[332113069,1720969839834,-356.76,0.00012404,2]
[332113071,1720969839844,-33193.0,0.00012623,2]
[332113073,1720969839853,-1000.0,0.00012777,2]
[332113075,1720969839863,-237.67,0.0001279,2]
[332113077,1720969839872,-609.79843374,0.00012928,2]
[332113079,1720969839882,-300.0,0.00012986,2]
[332113081,1720969839892,-355.25,0.00012986,2]
[332113083,1720969839902,-300.0,0.00013,4]
[332113085,1720969839911,-1058.14,0.00013078,2]
[332113087,1720969839921,-300.0,0.00013078,2]
[332113089,1720969839931,-429.49,0.00013078,2]
[332113091,1720969839940,-300.0,0.00013078,2]
[332113093,1720969839950,-710.5,0.00013078,2]
[332113095,1720969839960,-600.0,0.000131,4]
[332113097,1720969839969,-155.40260304,0.00013128,2]
[332113099,1720969839980,-1000.0,0.000132,4]
[332113101,1720969839989,-1300.0,0.000133,4]
[332113103,1720969839999,-157.07107769,0.00013331,2]
[332113105,1720969840009,-587.0,0.00013398,2]
[332113107,1720969840018,-11490.0,0.000134,3]
[332113109,1720969840028,-1600.0,0.000134,4]
[332113111,1720969840037,-1300.77,0.00013442,2]
[332113113,1720969840046,-419.54,0.00013442,2]
[332113115,1720969840056,-600.0,0.00013467,2]
[332113117,1720969840065,-300.0,0.000135,4]
[332113119,1720969840075,-5819.0,0.00013508,2]
[332113121,1720969840085,-1666.0,0.00013508,2]
[332113123,1720969840094,-38275.0,0.00013508,2]
[332113125,1720969840109,-5193.013,0.00013508,2]
[332113127,1720969840118,-1200.0,0.00013508,2]
[332113129,1720969840127,-369.407,0.00013508,2]
[332113131,1720969840136,-161.81,0.00013549,2]
[332113133,1720969840147,-6215.2716,0.00013575,2]
[332113135,1720969840156,-392.00769363,0.00013598,2]
[332113137,1720969840165,-166.5432,0.00013598,2]
[332113139,1720969840174,-546.3365,0.00013598,2]
[332113141,1720969840184,-608.5417,0.00013598,2]
[332113143,1720969840193,-1000.0,0.00013598,2]
[332113145,1720969840202,-300.0,0.000136,4]
[332113147,1720969840211,-5800.0,0.00013607,2]
[332113149,1720969840220,-5800.0,0.00013615,2]
[332113151,1720969840231,-5800.0,0.00013623,2]
[332113153,1720969840241,-5800.0,0.00013632,2]
[332113155,1720969840251,-5800.0,0.00013641,2]
[332113157,1720969840260,-5800.0,0.00013649,2]
[332113159,1720969840270,-5800.0,0.00013658,2]
[332113161,1720969840281,-5800.0,0.00013666,2]
[332113163,1720969840290,-5800.0,0.00013675,2]
[332113165,1720969840300,-30051.19056485,0.0001368,2]
[332113167,1720969840309,-500.0,0.00013683,2]
[332113169,1720969840320,-5800.0,0.00013683,2]
[332113171,1720969840329,-251.97232857,0.00013688,2]
[332113173,1720969840339,-5800.0,0.00013691,2]
[332113175,1720969840349,-213.0203136,0.00013697,2]
[332113177,1720969840359,-500.0,0.00013698,2]
[332113179,1720969840368,-500.0,0.00013698,2]
[332113181,1720969840377,-500.0,0.00013698,2]
[332113183,1720969840386,-500.0,0.00013698,2]
[332113185,1720969840396,-500.0,0.00013698,2]
[332113187,1720969840405,-500.0,0.00013698,2]
[332113189,1720969840415,-500.0,0.00013698,2]
[332113191,1720969840423,-500.0,0.00013698,2]
[332113193,1720969840433,-500.0,0.00013698,2]
[332113195,1720969840443,-500.0,0.00013698,2]
[332113197,1720969840453,-500.0,0.00013698,2]
[332113199,1720969840462,-500.0,0.00013698,2]
[332113201,1720969840471,-500.0,0.00013698,2]
[332113203,1720969840481,-422.23915134,0.00013698,2]
[332113205,1720969840491,-500.0,0.00013698,2]
[332113207,1720969840500,-757.12,0.00013698,2]
[332113209,1720969840509,-500.0,0.00013698,2]
[332113211,1720969840518,-500.0,0.00013698,2]
[332113213,1720969840529,-500.0,0.00013698,2]
[332113215,1720969840538,-500.0,0.00013698,2]
[332113217,1720969840547,-500.0,0.00013698,2]
[332113219,1720969840557,-500.0,0.00013698,2]
[332113221,1720969840566,-500.0,0.00013698,2]
[332113223,1720969840575,-500.0,0.00013698,2]
[332113225,1720969840584,-500.0,0.00013698,2]
[332113227,1720969840593,-1125.33,0.00013698,2]
[332113229,1720969840603,-500.0,0.00013698,2]
[332113231,1720969840614,-500.0,0.00013698,2]
[332113233,1720969840628,-500.0,0.00013698,2]
[332113235,1720969840639,-176.28029558,0.00013698,2]
[332113237,1720969840649,-500.0,0.00013698,2]
[332113239,1720969840658,-500.0,0.00013698,2]
[332113241,1720969840669,-500.0,0.00013698,2]
[332113243,1720969840678,-500.0,0.00013698,2]
[332113245,1720969840687,-500.0,0.00013698,2]
[332113247,1720969840699,-500.0,0.00013698,2]
[332113249,1720969840709,-514.63,0.00013698,2]
[332113251,1720969840718,-500.0,0.00013698,2]
[332113253,1720969840727,-500.0,0.00013698,2]
[332113255,1720969840737,-500.0,0.00013698,2]
[332113257,1720969840746,-500.0,0.00013698,2]
[332113259,1720969840755,-500.0,0.00013698,2]
[332113261,1720969840765,-500.0,0.00013698,2]
[332113263,1720969840774,-500.0,0.00013698,2]
[332113265,1720969840783,-500.0,0.00013698,2]
[332113267,1720969840792,-500.0,0.00013698,2]
[332113269,1720969840802,-500.0,0.00013698,2]
[332113271,1720969840811,-278.79418587,0.00013698,2]
[332113273,1720969840820,-500.0,0.00013698,2]
[332113275,1720969840830,-194.01669786,0.00013698,2]
[332113336,1720969841451,-305.98330214,0.00013698,2]
[332113338,1720969841460,-297.22408486,0.00013698,2]
[332113340,1720969841472,-202.77591514,0.00013698,2]
[332113342,1720969841481,-500.0,0.00013698,2]
[332113344,1720969841490,-633.32,0.00013698,2]
[332113346,1720969841499,-500.0,0.00013698,2]
[332113348,1720969841509,-500.0,0.00013698,2]
[332113350,1720969841518,-500.0,0.00013698,2]
[332113352,1720969841527,-272.10408486,0.00013698,2]
[332113354,1720969841539,-227.89591514,0.00013698,2]
[332113356,1720969841548,-500.0,0.00013698,2]
[332113358,1720969841557,-500.0,0.00013698,2]
[332113360,1720969841566,-606.11,0.00013698,2]
[332113362,1720969841576,-500.0,0.00013698,2]
[332113364,1720969841586,-500.0,0.00013698,2]
[332113366,1720969841596,-616.51,0.00013698,2]
[332113368,1720969841605,-500.0,0.00013698,2]
[332113370,1720969841614,-500.0,0.00013698,2]
[332113372,1720969841626,-500.0,0.00013698,2]
[332113374,1720969841636,-500.0,0.00013698,2]
[332113376,1720969841647,-500.0,0.00013698,2]
[332113378,1720969841656,-500.0,0.00013698,2]
[332113380,1720969841665,-500.0,0.00013698,2]
[332113382,1720969841676,-500.0,0.00013698,2]
[332113384,1720969841686,-500.0,0.00013698,2]